{"text_format":"1","workbook":"xlsx","n_sheets":2,"sheets":["Sheet1","Sheet2"],"not_rendered":{"charts":0,"images":1,"macros":1,"external_links":0,"defined_names":0,"comments":0,"pivot_tables":0},"unopened":[],"bounds":{"document_bytes":16777216,"sheet_cells":100000,"rows_first":2000,"rows_last":500,"rows_between":2000,"halvings":0,"cell_chars":16384,"cell_head_chars":4096},"cells_cut":0,"cells_raw":0,"read":"whole","date_system":"1900"}

{"sheet":"Sheet1","index":0,"n_rows":244,"n_cols":10,"rows_kept":244,"cut":false,"hidden":false,"merged":[[61,0,62,9],[234,0,235,9],[237,0,238,9],[239,3,239,6],[242,0,242,9],[243,0,243,9],[15,0,16,9],[20,0,20,9],[36,7,36,9],[17,3,17,6],[21,0,21,9],[32,7,32,9],[34,7,34,9],[25,6,25,9],[24,0,24,9],[28,7,28,8],[26,2,26,5],[30,2,30,5],[32,2,32,5],[34,2,34,5],[36,2,36,5],[38,2,38,5],[28,2,28,3],[40,2,40,5],[42,8,42,9],[54,0,54,1],[47,2,47,4],[49,2,49,4],[47,0,47,1],[49,0,49,1],[51,0,51,1],[52,0,52,1],[53,0,53,1],[40,7,40,9],[44,7,44,8],[44,2,44,4],[46,0,46,9],[45,2,45,4],[42,3,42,5],[7,6,8,9],[57,5,57,6],[12,0,13,9],[58,5,58,6],[59,5,59,6],[53,2,53,4],[53,7,53,9],[25,0,25,5],[26,7,26,9],[30,7,30,9],[47,7,47,9],[56,0,56,9],[49,7,49,8],[51,7,51,8],[51,2,51,4],[38,7,38,9],[60,5,60,6],[57,0,57,1],[58,0,58,1],[59,0,59,1],[60,0,60,1]]}
[]
[]
[]
[]
[]
[]
[]
[null,null,null,null,null,null,"www.sharetransport.co.za"]
[]
[]
[]
[]
["SHARE TRANSPORT HOUSEHOLD AND PERSONAL GOODS INVENTORY"]
[]
[]
["Once you have completed the form, please save it and then click the following button to \nautomatically email it to Share Transport.\n"]
[]
[]
[]
[]
["If you are not using Outlook or your Excel macros are not enabled, \nplease save it and send it to:"]
["stew@sharetransport.co.za"]
[]
[]
["COLLECTION AND DELIVERY DETAILS"]
["Consignor/Sender",null,null,null,null,null,"Consignee/Recipient"]
["Name",null,null,null,null,null,"Name"]
[]
["Salutation",null,null,null,null,null,"Salutation"]
[]
["Contact No.",null,null,null,null,null,"Contact No."]
[]
["Email address",null,null,null,null,null,"Email address"]
[]
["Complex or building",null,null,null,null,null,"Complex or building"]
[]
["Street No. and name",null,null,null,null,null,"Street No. and name"]
[]
["Suburb or area",null,null,null,null,null,"Suburb or area"]
[]
["City or town",null,null,null,null,null,"City or town"]
[]
["Area code",null,null,null,null,null,"Area code"]
[]
["Province",null,null,null,null,null,"Province"]
[]
["DATES AND OTHER DETAILS"]
["Send quote to:",null,null,null,null,null,"Are their any stair cases"]
[]
["Earliest collection date",null,null,null,null,null,"Latest collection date"]
[]
["Earliest delivery date",null,null,null,null,null,"Latest delivery date"]
[]
["Are there height restrictions?",null,null,null,null,null,"Are there weight restrictions?"]
[]
[]
["OTHER SERVICES REQUIRED (PLEASE CHECK APPROPRIATE BOXES)"]
[]
[]
[]
[]
["Please complete all relevant grey shaded boxes below"]
[]
[null,"       LIVING AND FAMILY ROOMS",null,null,null,null,"                DINING ROOM"]
[]
["QTY","ITEMS","SIZE"," ",null,"QTY","ITEMS","SIZE"," "]
[null,"SOFA - 4 SEATER ",null,68,{"$f":"SUM(D67*A67)","v":0},null,"DINING TABLE - 4 SEATER","S",34,{"$f":"SUM(I67*F67)","v":0}]
[null,"SOFA - 3 SEATER ",null,51,0,null,"DINING TABLE - 6 SEATER","M",51,0]
[null,"SOFA - 2 SEATER ",null,34,0,null,"DINING TABLE - 8 SEATER","L",68,0]
[null,"SOFA - 1 SEATER ",null,30,0,null,"DINING TABLE - GLASS",null,68,0]
[null,"SOFA - L SHAPE ",null,85,0,null,"DINING CHAIRS",null,12.75,0]
[null,"FUTON/SLEEPER COUCH",null,42.5,0,null,"SIDEBOARD","S",17,0]
[null,"CHAIR - ARM",null,17,0,null,"SIDEBOARD","M",25.5,0]
[null,"CHAIR - STD ",null,12.75,0,null,"SIDEBOARD","L",34,0]
[null,"CHAIR - LAZY BOY",null,30,0,null,"SIDEBOARD - GLASS","XL",51,0]
[null,"OTTOMAN",null,8.5,0,null,"CABINET - CORNER",null,17,0]
[null,"BEAN BAG",null,12.75,0,null,"CABINET - LIQUOR",null,25.5,0]
[null,"TABLE - COFFEE ",null,12.75,0,null,"WINE RACK","L",17,0]
[null,"TABLE - SIDE ",null,4.25,0,null,"WELSH DRESSER ","L",68,0]
[null,"TABLE - TELEPHONE ",null,8.5,0,null,"HOSTESS TROLLEY",null,12.75,0]
[null,"TABLE - HALF-MOON ",null,10.199999999999999,0,null,"TEA TROLLEY",null,8.5,0]
[null,"HALL STAND",null,25.5,0,null,"CARPETS / RUGS","S-M",4.25,0]
[null,"BUREAU",null,34,0,null,"CARPETS / RUGS","L",17,0]
[null,"CUPBOARD ","S",42.5,0,null,"PAINTINGS / PICTURES",null,2.5499999999999998,0]
[null,"CUPBOARD ","M-L",59.5,0,null,"MIRROR","S",2.04,0]
[null,"BOOK SHELF","S ",8.5,0,null,"MIRROR","M-L",3.4,0]
[null,"BOOK SHELF","M ",17,0]
[null,"BOOK SHELF","L ",25.5,0,null,"                   KITCHEN",null,null," "]
[null,"DISPLAY CABINET","S",17,0,null,null,null,null," "]
[null,"DISPLAY CABINET","M-L",25.5,0,"QTY","ITEMS","SIZE"," "," "]
[null,"WALL UNIT - 3 PC ",null,153,0,null,"FRIDGE","S",21.25,{"$f":"SUM(I91*F91)","v":0}]
[null,"WALL UNIT - 2 PC ",null,102,0,null,"FRIDGE","M",29.75,0]
[null,"WALL UNIT - 1 PC ",null,51,0,null,"FRIDGE","L",42.5,0]
[null,"TV CABINET","S",12.75,0,null,"FRIDGE (SIDE BY SIDE)","XL",59.5,0]
[null,"TV CABINET","M-L",25.5,0,null,"DEEP FREEZER","S",25.5,0]
[null,"TV STAND",null,8.5,0,null,"DEEP FREEZER","M",34,0]
[null,"TV (37 CM-74CM)",null,12.75,0,null,"DEEP FREEZER","L",42.5,0]
[null,"TV (R/PRO. OR PLASMA)",null,25.5,0,null,"STOVE",null,34,0]
[null,"VIDEO/DVD/DSTV/MNET",null,3.4,{"$f":"SUM(D99*A99)","v":0},null,"WASHING MACHINE -AUTO",null,25.5,0]
[null,"ANTENNA/SATELITE DISH",null,4.25,0,null,"WASHING MACHINE -TOP LOAD",null,29.75,0]
[null,"HI FI "," ",8.5,0,null,"TUMBLE DRYER",null,17,0]
[null,"HOME THEATER SYSTEM"," ",17,0,null,"DISH WASHER",null,17,0]
[null,"KIST",null,8.5,0,null,"MICROWAVE",null,4.25,0]
[null,"LAMP STD",null,4.25,0,null,"TABLE","S",17,0]
[null,"LAMP STANDING",null,8.5,0,null,"TABLE","M-L",34,0]
[null,"PAINTINGS / PICTURES",null,4.25,0,null,"CHAIR",null,8.5,0]
[null,"MIRROR","S",2.04,0,null,"CUPBOARD (2 DOOR)",null,17,0]
[null,"MIRROR","M-L",4.25,0,null,"CUPBOARD (3 DOOR)",null,29.75,0]
[null,"CARPETS / RUGS","S-M",4.25,0,null,"CUPBOARD (4 DOOR)",null,38.25,0]
[null,"CARPETS / RUGS","L ",17,0,null,"BROOM CUPBOARD",null,21.25,0]
[null,"CD STAND",null,4.25,0,null,"VEG RACK",null,8.5,0]
[null,"MAGAZINE RACKS",null,4.25,0,null,"DUSTBIN / BUCKETS",null,8.5,0]
[null,"ORGAN",null,42.5,0,null,"VACUUM / POLISHER",null,8.5,0]
[null,"PIANO UPRIGHT",null,42.5,0,null,"CLOTHES HORSE",null,4.25,0]
[null,"PIANO BABY GRAND",null,68,0,null,"LAUNDRY BASKET",null,12.75,0]
[null,"PIANO GRAND",null,136,0,null,"IRONING BOARD",null,3.4,0]
[null,"KEYBOARDS",null,8.5,0,null,"BROOMS / MOPS",null,3.4,0]
[null,"CLOCK -GRAND FATHER",null,25.5,0,null,"STOOL",null,4.25,0]
[null,"CLOCK -STD",null,4.25,0]
[null,"ORNAMENTS","S",4.25,0]
[null,"ORNAMENTS","M-L",8.5,0,null,"BOXES & BAGS",null,null," "]
[null,"COAT / HAT STAND",null,8.5,0,null,null,null,null," "]
[null,"BUTLERS TRAY",null,4.25,0,"QTY","ITEMS","SIZE"," "," "]
[null,"CURTAIN / BLINDS"," ",4.25,0,null,"BOXES","S-M",4.25,{"$f":"SUM(I124*F124)","v":0}]
[null,"FISH TANK","S-M",17,0,null,"BOXES","L",5.95,0]
[null,"HEATER",null,4.25,0,null,"BAGS",null,4.25,0]
[null,null,null,0,0,null,"SUITCASES",null,4.25,0]
[null," "," ",0,0,null,"WARDROBE BOXES",null,8.5,0]
[null,null,null,null," ",null,null,null,null," "]
[null,"MISCELLANEOUS",null,null," ",null,"MISCELLANEOUS",null,null," "]
[null,null,null,null," ",null,null,null,null," "]
["QTY","ITEMS","SIZE"," "," ","QTY","ITEMS","SIZE"," "," "]
[null,null,null,0,{"$f":"SUM(D133*A133)","v":0},null,null,"L",0,{"$f":"SUM(I133*F133)","v":0}]
[null,null,null,0,0,null,null,null,0,0]
[null,null,null,0,0,null,null,"S",0,0]
[null,null,null,0,0,null,null,null,0,0]
[null,null,null,0,0,null,null,null,0,0]
[null,null,null,0,0,null,null,null,0,0]
[null,null,null,0,0,null,null,null,0,0]
[null,null,null,0,0,null,null,null,0,0]
[null,null,null,0,0,null,null,null,0,0]
[null,null,null,0,0,null,null,null,0,0]
[null,null,null,0,0,null,null,null,0,0]
[]
[]
[null,"                   BEDROOMS",null,null," ",null,"                      STUDY",null,null," "]
[null,null,null,null," ",null,null,null,null," "]
["QTY","ITEMS","SIZE"," "," ","QTY","ITEMS","SIZE"," "," "]
[null,"BED","KING",102,{"$f":"SUM(D149*A149)","v":0},null,"DESK L-SHAPE",null,68,{"$f":"SUM(I149*F149)","v":0}]
[null,"BED","QUEEN",76.5,0,null,"DESK STD","S-M",34,0]
[null,"BED","DBL",68,0,null,"DESK STD","L",51,0]
[null,"BED","SING",51,0,null,"CHAIRS",null,17,0]
[null,"BUNK BED ","DBL",119,0,null,"FAX MACHINE",null,8.5,0]
[null,"BUNK BED ","SING",102,0,null,"PHOTOCOPIER",null,25.5,0]
[null,"HEADBOARD","KING",34,0,null,"PRINTER /SCANNER",null,4.25,0]
[null,"HEADBOARD","QUEEN",34,0,null,"COMPUTER ",null,12.75,0]
[null,"HEADBOARD","DBL",34,0,null,"COMPUTER STAND",null,25.5,0]
[null,"HEADBOARD","SING",17,0,null,"CREDENZA"," ",4.25,0]
[null,"PEDESTAL",null,8.5,0,null,"FILING CABINET 1DOOR"," ",34,0]
[null,"SIDE TABLE",null,4.25,0,null,"FILING CABINET 2DOOR"," ",51,0]
[null,"DRESSING TABLE","S",17,0,null,"FILING 2 DRAWER",null,17,0]
[null,"DRESSING TABLE","M-L",29.75,0,null,"FILING 3 DRAWER",null,21.25,0]
[null,"DRESSING TABLE STOOL"," ",4.25,0,null,"FILING 4 DRAWER",null,25.5,0]
[null,"CHEST OF DRAWS","S",17,0,null,"BOOKCASE","S ",8.5,0]
[null,"CHEST OF DRAWS","M-L",25.5,0,null,"BOOKCASE","M ",17,0]
[null,"WARDROBES 2 DOOR"," ",42.5,0,null,"BOOKCASE","L",25.5,0]
[null,"WARDROBES 3 DOOR",null,59.5,0,null,"CABINET","S",17,0]
[null,"BOOK SHELF","S ",8.5,0,null,"CABINET","M-L",34,0]
[null,"BOOK SHELF","M ",17,0,null,"DRAWING /WHITE BOARD",null,8.5,0]
[null,"BOOK SHELF","L ",25.5,0,null,"PAINTINGS / PICTURES",null,2.5499999999999998,0]
[null,"TV STAND",null,8.5,0,null,"SAFE ","S",4.25,0]
[null,"TV (37 CM-74CM)",null,12.75,0,null,"SAFE -UNDER 50 KGS","M",8.5,0]
[null,"PAINTINGS / PICTURES",null,4.25,0,null,null,null,0,0]
[null,"CHEVAL MIRROR"," ",8.5,0,null," "," ",0,0]
[null,"KIST"," ",8.5,0,null,null,null,0,0]
[null,"CARPET / RUG"," ",8.5,0,null,null,null,0,0]
[null,"CHAIR",null,8.5,0,null,null,null,null," "]
[null,"SLEEPER COUCH",null,42.5,0,null,"BAR ",null,null," "]
[null,"LAMP STD",null,8.5,0,null,null,null,null," "]
[null,"FAN - STANDING",null,8.5,0,"QTY","ITEMS","SIZE"," "," "]
[null,"FAN-DESK /HEATER",null,4.25,0,null,null,null,null," "]
[null,"CLOTHES BASKET",null,12.75,0,null,"BAR STOOLS",null,8.5,{"$f":"SUM(I182*F182)","v":0}]
[null,"BABY COT",null,17,0,null,"BAR UNIT","M",51,0]
[null,"COMPACTUM",null,25.5,0,null,"DISPLAY CABINET","S",25.5,0]
[null,"SEWING MACHINE",null,17,0,null,"DISPLAY CABINET","M-L",34,0]
[null,"SEW MACHINE CABINET",null,17,0,null,"CHAIRS",null,8.5,0]
[null,"TOYS",null,8.5,0,null,"TABLE -COFFEE ",null,12.75,0]
[null,null,null,0,0,null,"TABLE -SIDE ",null,4.25,0]
[null," ",null,0,0,null,"POOL TABLE",null,120,0]
[null,null,null,null,null,null,"TV (37 CM-74CM)",null,12.75,0]
[null,"                      GARDEN",null,null," ",null,"FAN -STANDING ",null,8.5,0]
[null,null,null,null," ",null,"PAINTINGS / PICTURES",null,4.25,0]
["QTY","ITEMS","SIZE"," "," ",null,"CARPET / RUG","S-M",4.25,0]
[null,null,null,null," ",null,"CARPET / RUG","L",17,0]
[null,"TABLE PLASTIC",null,25.5,{"$f":"SUM(D195*A195)","v":0},null,null,null,0,0]
[null,"TABLE WOOD","S",25.5,0,null,null,null,0,0]
[null,"TABLE WOOD","M-L",51,0,null,null,null,0,0]
[null,"TABLE CEMENT"," ",51,0,null,null,null,null," "]
[null,"TABLE GLASS TOP","S",34,0,null,"                     GARAGE",null,null," "]
[null,"TABLE GLASS TOP","M-L",51,0,null,null,null,null," "]
[null,"CHAIR -PLASTIC",null,4.25,0,"QTY","ITEMS","SIZE"," "," "]
[null,"CHAIR -STACKING  ",null,4.25,0,null,null,null,null,{"$f":"SUM(I202*F202)","v":0}]
[null,"CHAIR -FOLDING",null,4.25,0,null,"WORK BENCH ","S ",42.5,0]
[null,"SHELVES",null,17,0,null,"WORK BENCH ","M ",59.5,0]
[null,"STATUES","S-M",17,0,null,"WORK BENCH ","L",102,0]
[null,"GARDEN BENCH",null,46.75,0,null,"SHELVING","S-M",51,0]
[null,"POOL LOUNGERS",null,17,0,null,"SHELVING","L",68,0]
[null,"UMBRELLA",null,8.5,0,null,"TOOL CUPBOARD"," ",42.5,0]
[null,"BRAAI","S-M",8.5,0,null,"TOOLBOX","S-M",4.25,0]
[null,"BRAAI","L",25.5,0,null,"TOOLBOX","L",8.5,0]
[null,"POT PLANTS","S ",8.5,0,null,"FISHING RODS"," ",4.25,0]
[null,"POT PLANTS (2 PEOPLE)","M ",17,0,null,"WELDER / COMPRESSOR",null,25.5,0]
[null,"POT PLANTS (3-5 PEOPLE)","L",51,0,null,"SAW BENCH / LATHE",null,25.5,0]
[null,"GARDEN TOOLS",null,4.25,0,null,"BANDSAW / DRILL PRESS",null,51,0]
[null,"LAWN MOWER",null,17,0,null,"STORAGE CONTAINERS",null,4.25,0]
[null,"WEEDEATER"," ",4.25,0,null,"TRUNK"," ",8.5,0]
[null,"WHEELBARROW"," ",17,0,null,"BICYCLES",null,17,0]
[null,"LADDER","S",4.25,0,null,"GYM WALKER",null,25.5,0]
[null,"LADDER","M-L",8.5,0,null,"EXERCISE BIKE",null,21.25,0]
[null,"OUTDOOR SWING","M",51,0,null,"HOME GYM",null,51,0]
[null,"POOL EQUIPMENT",null,4.25,0,null,"COOLER BOX",null,4.25,0]
[null,"KENNEL",null,34,0,null,"GAS BOTTLES",null,8.5,0]
[null,"OUTSIDE RUBBISH BIN",null,12.75,0,null,"CAMPING EQUIPMENT",null,17,0]
[null,"BIRD BATH",null,8.5,0,null,"SURF BOARD/PADDLE SKI",null,17,0]
[null,"WATER FEATURE","S-M",17,0,null,"CANOE / WIND SURFER",null,42.5,0]
[null,"HOSE PIPE",null,3.4,0,null,"GOLF BAG / CART",null,8.5,0]
[null,"TABLES FOLDING",null,0,0,null,"TIMBER",null,3.4,0]
[null,null,null,0,0,null,"MOTORBIKE",null,102,0]
[null,null,null,0,{"$f":"SUM(D229*A229)","v":0},null,null,null,0,0]
[null,null,null,null,{"$f":"SUM(E66:E229)","v":0},null,null,null,null,{"$f":"SUM(J66:J229)","v":0}]
[null,null,null,null,null,null,"CUBIC FEET",null,null,{"$f":"SUM(E230+J230)","v":0}]
[null,null,null,null,null,null,"CUBIC FEET INCL 10%",null,null,{"$f":"SUM(J231*1.1)","v":0}]
[null,null,null,null,null,null,"CUBIC METRES",null,null,{"$f":"SUM(J231/35.31)","v":0}]
[]
["SHARE TRANSPORT HOUSEHOLD AND PERSONAL GOODS INVENTORY"]
[]
[]
["Once you have completed the form, please save it and then click the following button to \nautomatically email it to Share Transport.\n"]
[]
[]
[]
[]
["If you are not using Outlook or your Excel macros are not enabled, \nplease save it and send it to:"]
["stew@sharetransport.co.za"]

{"sheet":"Sheet2","index":1,"n_rows":8,"n_cols":3,"rows_kept":8,"cut":false,"hidden":true,"merged":[]}
["Mr","Eastern Cape","Consignor/sender"]
["Mrs","Free State","Consignee/receipient"]
["Miss","Gauteng"]
["Ms","Limpopo","None at either end"]
["Dr","Mpumalanga","Only at the collection point"]
["Prof","Northern Province","Only at the delivery point"]
["Adv","North West"]
["Rev","Western Cape"]